[Event "VIII Open Semana Santa-B 2024"]
[Site "San Vicente del Raspeig"]
[Date "2024.03.28"]
[Round "2.3"]
[White "Zhuravlev, Matvey R"]
[Black "Seleznev, Egor"]
[Result "1-0"]
[ECO "E01"]
[WhiteElo "1774"]
[BlackElo "1885"]
[Annotator "NA RC"]
[PlyCount "151"]
[EventDate "2024.03.27"]
[EventType "swiss"]
[EventCountry "ESP"]
[SourceTitle "playchess.com"]
[Source "ChessBase"]
[SourceQuality "1"]
[TimeControl "5400+30"]

1. d4 {[%emt 0:00:01]} e6 {[%emt 0:01:04]} 2. c4 {[%emt 0:00:07]} Nf6 {[%emt 0:00:21]} 3. g3 {[%emt 0:00:12]} d5 {[%emt 0:02:07]} 4. Nf3 {[%emt 0:00:05]} c6 {[%emt 0:00:53]} 5. Qd3 {[%emt 0:01:55]} Bb4+ {[%emt 0:04:05]} 6. Bd2 {[%emt 0:00:18] E01: Catalan: Early deviations.} Bd6 {[%emt 0:05:26]} 7. Nc3 {[%emt 0:02:01]} Nbd7 {[%emt 0:02:12]} 8. Bg2 {[%emt 0:00:24]} h6 {[%emt 0:01:06]} 9. O-O {[%emt 0:01:30]} O-O {[%emt 0:01:09]} 10. e4 dxc4 {[%emt 0:01:51]} 11. Qxc4 {[%emt 0:01:25]} e5 {[%emt 0:01:05]} 12. Rfd1 {[%emt 0:13:54]} Qe7 {[%emt 0:01:41]} 13. h3 {[%emt 0:05:26]} exd4 {[%emt 0:06:29]} 14. Nxd4 {[%emt 0:01:36]} Nb6 {[%emt 0:06:27]} 15. Qb3 {[%emt 0:05:22]} Be6 {[%emt 0:03:34]} 16. Nxe6 {[%emt 0:00:49]} Qxe6 {[%emt 0:04:22]} 17. Qxe6 {[%emt 0:03:05]} fxe6 {[%emt 0:00:35]} 18. b3 {[%emt 0:14:19]} Rad8 {[%emt 0:01:44]} 19. Be3 {[%emt 0:07:02]} Be5 {[%emt 0:02:23]} 20. Rxd8 {[%emt 0:00:51]} Rxd8 {[%emt 0:00:30]} 21. Rd1 {[%emt 0:00:07]} Rxd1+ {[%emt 0:00:48]} 22. Nxd1 {[%emt 0:00:05]} Bd6 {[%emt 0:01:35]} 23. Nb2 {[%emt 0:01:17]} Nfd7 {[%emt 0:02:48]} 24. Nd3 {[%emt 0:00:47]} e5 {[%emt 0:01:38]} 25. Bf1 {[%emt 0:05:37]} Kf7 {[%emt 0:02:06]} 26. f3 {[%emt 0:00:31]} Nc8 {[%emt 0:03:02]} 27. Kf2 {[%emt 0:01:58]} b5 {[%emt 0:02:36]} 28. f4 {[%emt 0:02:31]} Bc7 {[%emt 0:09:17]} 29. Nb4 {[%emt 0:03:47]} Nb8 {[%emt 0:02:54]} 30. Nd3 {[%emt 0:01:59]} Nd7 {[%emt 0:02:01]} 31. fxe5 {[%emt 0:01:29]} Nxe5 {[%emt 0:00:34]} 32. Nxe5+ {[%emt 0:00:04]} Bxe5 {[%emt 0:00:19]} 33. Be2 {[%emt 0:00:18]} Ke7 {[%emt 0:05:43]} 34. Bg4 {[%emt 0:03:59]} Nd6 {[%emt 0:02:14]} 35. Kf3 {[%emt 0:00:44]} a6 {[%emt 0:02:30]} 36. h4 {[%emt 0:00:17]} a5 {[%emt 0:03:09]} 37. Bd2 {[%emt 0:09:21]} a4 {[%emt 0:01:33]} 38. bxa4 {[%emt 0:00:24]} bxa4 {[%emt 0:00:10]} 39. Bf4 {[%emt 0:00:07]} Nc4 {[%emt 0:02:05]} 40. Ke2 {[%emt 0:00:45]} Kd6 {[%emt 0:01:16]} 41. Kd3 {[%emt 0:00:42]} Nb6 {[%emt 0:01:45]} 42. Be2 {[%emt 0:04:16]} c5 {[%emt 0:01:46]} 43. Kc2 {[%emt 0:01:28]} Bxf4 {[%emt 0:04:09]} 44. gxf4 {[%emt 0:00:05]} c4 {[%emt 0:00:32]} 45. Kc3 {[%emt 0:01:05]} Kc5 {[%emt 0:01:10]} 46. a3 {[%emt 0:00:08]} g6 {[%emt 0:00:28]} 47. Bf1 {[%emt 0:03:05]} Nc8 {[%emt 0:03:22]} 48. Bxc4 {[%emt 0:00:59]} Nd6 {[%emt 0:00:10]} 49. Bd3 {[%emt 0:00:27]} Nc8 {[%emt 0:02:08]} 50. Bc2 {[%emt 0:00:45]} Nb6 {[%emt 0:00:44]} 51. Bd3 {[%emt 0:01:53]} h5 {[%emt 0:00:43]} 52. Bf1 {[%emt 0:01:06]} Nc8 {[%emt 0:00:53]} 53. Kd3 {[%emt 0:02:24]} Nd6 {[%emt 0:00:47]} 54. Ke3 {[%emt 0:00:12]} Ne8 {[%emt 0:00:35]} 55. e5 {[%emt 0:00:44]} Nc7 {[%emt 0:00:21]} 56. Bd3 {[%emt 0:00:42]} Nd5+ {[%emt 0:00:17]} 57. Kf3 {[%emt 0:00:16]} Ne7 {[%emt 0:00:14]} 58. Bc2 {[%emt 0:00:18]} Kd5 {[%emt 0:01:22]} 59. Bxa4 {[%emt 0:00:41]} Nf5 {[%emt 0:00:05]} 60. Bb3+ {[%emt 0:00:21]} Kc6 {[%emt 0:00:39]} 61. Bf7 {[%emt 0:01:33]} Nxh4+ {[%emt 0:00:12]} 62. Ke4 {[%emt 0:00:09]} Nf5 {[%emt 0:00:41]} 63. Bxg6 {[%emt 0:00:33]} Ng3+ {[%emt 0:00:30]} 64. Kf3 {[%emt 0:00:08]} h4 {[%emt 0:00:09]} 65. Bd3 {[%emt 0:00:11]} (65. f5 $142 Kd5 66. f6 Ke6 67. Kg4 Nf1 68. Bf5+ (68. Kxh4 Nd2 $18) 68... Kd5 69. e6 (69. Kxh4 Ne3 $18) 69... h3 70. e7 (70. Kxh3 Ne3 71. e7 Nxf5 72. e8=Q Nd6 73. Qe7 Kc6 74. Qe6 Kc5)) 65... Nh5 {[%emt 0:00:57]} 66. Kg4 {[%emt 0:00:30]} Ng7 {[%emt 0:00:45]} 67. Kxh4 {[%emt 0:00:14]} Kd5 {[%emt 0:00:16]} 68. Kg4 {[%emt 0:00:44]} Ne6 {[%emt 0:00:30]} 69. Kf5 {[%emt 0:01:08]} Ng7+ {[%emt 0:00:47]} 70. Kf6 {[%emt 0:00:33]} Ne8+ {[%emt 0:01:11]} 71. Ke7 {[%emt 0:00:37]} Nc7 {[%emt 0:00:00] [#]} 72. e6 $1 {[%emt 0:00:44]} Kd4 {[%emt 0:00:25]} 73. Bb1 {[%emt 0:00:58]} Nd5+ {[%emt 0:00:24]} 74. Kd7 {[%emt 0:00:25]} Nf6+ {[%emt 0:00:38]} 75. Kd8 {[%emt 0:00:13]} Ke3 {[%emt 0:00:24]} 76. f5 {[%emt 0:00:25]} 1-0

[Event "VIII Open Semana Santa-B 2024"]
[Site "San Vicente del Raspeig"]
[Date "2024.03.28"]
[Round "2.5"]
[White "Serrano Requena, Guillem"]
[Black "Carretero Ajo, Jesus"]
[Result "1/2-1/2"]
[ECO "D03"]
[WhiteElo "1768"]
[BlackElo "1876"]
[Annotator "NA RC"]
[PlyCount "53"]
[EventDate "2024.03.27"]
[EventType "swiss"]
[EventCountry "ESP"]
[SourceTitle "playchess.com"]
[Source "ChessBase"]
[SourceQuality "1"]
[TimeControl "5400+30"]

1. d4 {[%emt 0:00:03]} d5 {[%emt 0:00:08]} 2. Nf3 {[%emt 0:00:05]} Nf6 {[%emt 0:00:11]} 3. Bg5 {[%emt 0:00:05]} Ne4 {[%emt 0:01:53]} 4. Bh4 {[%emt 0:00:39]} h5 {[%emt 0:02:11]} 5. Nfd2 {[%emt 0:09:30]} g5 {[%emt 0:01:06]} 6. Nxe4 {[%emt 0:00:18]} gxh4 {[%emt 0:00:18]} 7. Ned2 {[%emt 0:00:41]} Nc6 {[%emt 0:02:00]} 8. e3 {[%emt 0:01:08]} Bf5 {[%emt 0:01:39]} 9. c3 {[%emt 0:06:44]} e6 {[%emt 0:00:30]} 10. h3 {[%emt 0:09:14]} Bd6 {[%emt 0:05:34]} 11. Nf3 {[%emt 0:03:15]} Rg8 {[%emt 0:04:06]} 12. Rg1 {[%emt 0:02:22]} Qf6 {[%emt 0:07:39]} 13. Qb3 {[%emt 0:06:17]} Kd7 {[%emt 0:04:45]} 14. Nbd2 {[%emt 0:02:54]} Rg7 {[%emt 0:12:51]} 15. a3 {[%emt 0:10:05]} Rag8 {[%emt 0:01:04]} 16. Rh1 {[%emt 0:03:09]} Kc8 {[%emt 0:03:04]} 17. c4 {[%emt 0:03:01]} Na5 {[%emt 0:01:25]} 18. Qa4 {[%emt 0:01:41]} Nxc4 {[%emt 0:00:19]} 19. Bxc4 {[%emt 0:02:56]} dxc4 {[%emt 0:00:58]} 20. e4 {[%emt 0:00:24]} Bf4 {[%emt 0:10:17]} 21. exf5 {[%emt 0:01:15]} Bxd2+ {[%emt 0:00:07]} 22. Kxd2 {[%emt 0:02:24]} Rxg2 {[%emt 0:00:13]} 23. Rag1 {[%emt 0:01:34]} b5 {[%emt 0:10:09]} 24. Qxb5 {[%emt 0:05:44]} Rxg1 {[%emt 0:00:38]} 25. Rxg1 {[%emt 0:00:39]} Rxg1 {[%emt 0:00:29]} 26. Qe8+ {[%emt 0:03:19]} Kb7 {[%emt 0:00:29]} 27. Qb5+ {[%emt 0:00:29]} 1/2-1/2

[Event "VIII Open Semana Santa-B 2024"]
[Site "San Vicente del Raspeig"]
[Date "2024.03.28"]
[Round "2.6"]
[White "Ruiz de Leon Merlo, Esther"]
[Black "Mochon Bernal, Jorge"]
[Result "1-0"]
[ECO "A31"]
[WhiteElo "1873"]
[BlackElo "1762"]
[Annotator "NA RC"]
[PlyCount "43"]
[EventDate "2024.03.27"]
[EventType "swiss"]
[EventCountry "ESP"]
[SourceTitle "playchess.com"]
[Source "ChessBase"]
[SourceQuality "1"]
[TimeControl "5400+30"]

1. d4 Nf6 2. c4 c5 3. Nf3 g6 4. Nc3 cxd4 5. Nxd4 Bg7 6. e4 d6 7. Be2 O-O 8. Be3 b6 9. f4 Bb7 10. Bf3 Nbd7 11. O-O Rc8 12. b3 Nc5 13. Qc2 Ne8 14. Rad1 Qc7 15. Ndb5 Qb8 16. Nd5 Bxd5 17. exd5 Nc7 18. Nd4 b5 19. Nc6 Qb7 20. Nxe7+ Kh8 21. Nxc8 Qxc8 22. f5 1-0

[Event "VIII Open Semana Santa-B 2024"]
[Site "San Vicente del Raspeig"]
[Date "2024.03.28"]
[Round "2.7"]
[White "Grau Sansaloni, Francisco"]
[Black "Torralba Brosa, Marc"]
[Result "0-1"]
[ECO "A05"]
[WhiteElo "1762"]
[BlackElo "1869"]
[Annotator "NA RC"]
[PlyCount "76"]
[EventDate "2024.03.27"]
[EventType "swiss"]
[EventCountry "ESP"]
[SourceTitle "playchess.com"]
[Source "ChessBase"]
[SourceQuality "1"]
[TimeControl "5400+30"]

1. b3 Nf6 {[%emt 0:00:30]} 2. Bb2 g6 {[%emt 0:00:30]} 3. e4 d6 {[%emt 0:00:30]} 4. d3 Bg7 {[%emt 0:00:30]} 5. Nf3 O-O {[%emt 0:00:30]} 6. Be2 c5 {[%emt 0:00:30]} 7. Nbd2 Nc6 {[%emt 0:00:30]} 8. Qc1 a6 {[%emt 0:00:30]} 9. O-O b5 {[%emt 0:00:30]} 10. c4 b4 {[%emt 0:00:30]} 11. d4 cxd4 {[%emt 0:00:30]} 12. Nxd4 Bb7 {[%emt 0:00:30]} 13. Nxc6 Bxc6 {[%emt 0:00:30]} 14. Qc2 Nd7 {[%emt 0:00:30]} 15. Bxg7 Kxg7 {[%emt 0:00:30]} 16. Qb2+ Kg8 {[%emt 0:00:30]} 17. Qd4 Nc5 {[%emt 0:00:30]} 18. Bf3 Ne6 {[%emt 0:00:30]} 19. Qe3 a5 {[%emt 0:00:30]} 20. g3 Qd7 {[%emt 0:00:30]} 21. Bg2 Qa7 {[%emt 0:00:30]} 22. Qd3 Nc5 {[%emt 0:00:30]} 23. Qc2 Qb7 {[%emt 0:00:30]} 24. f3 Qb6 {[%emt 0:00:30]} 25. Kh1 Ne6 {[%emt 0:00:30]} 26. Rad1 a4 {[%emt 0:00:30]} 27. Qd3 axb3 {[%emt 0:00:30]} 28. axb3 Ra2 {[%emt 0:00:30]} 29. Ra1 Rfa8 {[%emt 0:00:30]} 30. Rxa2 Rxa2 {[%emt 0:00:30]} 31. Qe2 Qd4 {[%emt 0:00:30]} 32. Rd1 Nc5 {[%emt 0:00:30]} 33. f4 Qb2 {[%emt 0:00:30]} 34. Qe1 Nxb3 {[%emt 0:00:30]} 35. Nxb3 Qxb3 {[%emt 0:00:30]} 36. Rb1 Qc2 {[%emt 0:00:30]} 37. Rc1 Qb2 {[%emt 0:00:30]} 38. Rb1 Qxg2# {[%emt 0:00:30]} 0-1

[Event "VIII Open Semana Santa-B 2024"]
[Site "San Vicente del Raspeig"]
[Date "2024.03.28"]
[Round "3.1"]
[White "Pridhish Kumar S"]
[Black "Garcia Ruano, Juan Carlos"]
[Result "1/2-1/2"]
[ECO "A49"]
[WhiteElo "1809"]
[BlackElo "1885"]
[Annotator "NA RC"]
[PlyCount "49"]
[EventDate "2024.03.27"]
[EventType "swiss"]
[EventCountry "ESP"]
[SourceTitle "playchess.com"]
[Source "ChessBase"]
[SourceQuality "1"]
[TimeControl "5400+30"]

1. Nf3 {[%emt 0:00:11]} c5 {[%emt 0:00:44]} 2. g3 {[%emt 0:00:18]} Nc6 {[%emt 0:00:14]} 3. d4 {[%emt 0:01:23]} cxd4 {[%emt 0:01:18]} 4. Nxd4 {[%emt 0:00:29]} g6 {[%emt 0:00:56]} 5. Bg2 {[%emt 0:02:43]} Bg7 {[%emt 0:00:31]} 6. c3 {[%emt 0:00:26]} Nf6 {[%emt 0:00:57]} 7. O-O {[%emt 0:01:01]} O-O {[%emt 0:00:05]} 8. Be3 {[%emt 0:04:47]} d5 {[%emt 0:09:33]} 9. Nd2 {[%emt 0:04:16]} e5 {[%emt 0:00:30]} 10. Nxc6 {[%emt 0:01:13]} bxc6 {[%emt 0:01:01]} 11. Bc5 {[%emt 0:01:21]} Re8 {[%emt 0:00:20]} 12. e4 {[%emt 0:01:03]} Qc7 {[%emt 0:04:43]} 13. b4 {[%emt 0:04:29]} Be6 {[%emt 0:02:28]} 14. Qc2 {[%emt 0:03:30]} Rad8 {[%emt 0:02:49]} 15. Rfe1 {[%emt 0:04:30]} dxe4 {[%emt 0:01:13]} 16. Nxe4 {[%emt 0:00:10]} Nxe4 {[%emt 0:00:08]} 17. Bxe4 {[%emt 0:00:25]} f5 {[%emt 0:00:23]} 18. Bg2 {[%emt 0:00:49]} e4 {[%emt 0:01:08]} 19. Rad1 {[%emt 0:01:10]} a5 {[%emt 0:02:28]} 20. a4 axb4 {[%emt 0:00:19]} 21. cxb4 {[%emt 0:03:45]} Qf7 {[%emt 0:01:04]} 22. Rxd8 {[%emt 0:02:26]} Rxd8 {[%emt 0:00:09]} 23. a5 {[%emt 0:03:25]} Bb3 {[%emt 0:00:58]} 24. Qc1 {[%emt 0:02:38]} Rd3 {[%emt 0:03:52]} 25. Bf1 {[%emt 0:01:13]} 1/2-1/2

[Event "VIII Open Semana Santa-B 2024"]
[Site "San Vicente del Raspeig"]
[Date "2024.03.28"]
[Round "3.2"]
[White "Tabuenca Dopico, Pedro"]
[Black "Amoros Moran, Jose Joaquin"]
[Result "0-1"]
[ECO "B06"]
[WhiteElo "1797"]
[BlackElo "1883"]
[Annotator "NA RC"]
[PlyCount "60"]
[EventDate "2024.03.27"]
[EventType "swiss"]
[EventCountry "ESP"]
[SourceTitle "playchess.com"]
[Source "ChessBase"]
[SourceQuality "1"]
[TimeControl "5400+30"]

1. e4 {[%emt 0:00:02]} c5 {[%emt 0:04:24]} 2. Ne2 {[%emt 0:00:09]} d6 {[%emt 0:00:32]} 3. g3 {[%emt 0:00:06]} g6 {[%emt 0:00:30]} 4. Bg2 {[%emt 0:00:16]} Bg7 {[%emt 0:00:19]} 5. c3 {[%emt 0:00:18]} Nf6 {[%emt 0:04:10]} 6. d4 {[%emt 0:00:22]} Nbd7 {[%emt 0:01:56]} 7. O-O {[%emt 0:00:48]} O-O {[%emt 0:03:32]} 8. h3 {[%emt 0:04:28]} Rb8 {[%emt 0:00:48]} 9. Be3 {[%emt 0:01:22]} b6 {[%emt 0:01:51]} 10. Nd2 {[%emt 0:08:27]} Qc7 {[%emt 0:05:27]} 11. f4 {[%emt 0:04:00]} Bb7 {[%emt 0:05:15]} 12. Rc1 {[%emt 0:07:54]} b5 {[%emt 0:06:11]} 13. f5 {[%emt 0:06:37]} e5 {[%emt 0:05:07]} 14. d5 {[%emt 0:01:23]} c4 {[%emt 0:01:29]} 15. g4 {[%emt 0:01:47]} h6 {[%emt 0:03:45]} 16. Ng3 {[%emt 0:14:06]} Nc5 {[%emt 0:04:08]} 17. Bxc5 {[%emt 0:03:29]} Qxc5+ {[%emt 0:00:26]} 18. Kh2 {[%emt 0:01:50]} Nh7 {[%emt 0:05:00]} 19. a3 {[%emt 0:03:27]} Bf6 {[%emt 0:01:09]} 20. Nf3 {[%emt 0:01:17]} Ng5 {[%emt 0:04:11]} 21. Nh4 {[%emt 0:04:19]} Kg7 {[%emt 0:03:40]} 22. Rc2 {[%emt 0:03:18]} Nh7 {[%emt 0:03:54]} 23. Nf3 {[%emt 0:00:37]} Ng5 {[%emt 0:01:57]} 24. Nh4 {[%emt 0:00:17]} a5 {[%emt 0:00:25]} 25. Rcf2 {[%emt 0:01:32]} b4 {[%emt 0:04:02]} 26. axb4 {[%emt 0:06:19]} axb4 {[%emt 0:00:01]} 27. fxg6 {[%emt 0:03:50]} fxg6 {[%emt 0:01:34]} 28. Nf3 {[%emt 0:22:10]} bxc3 {[%emt 0:04:08]} 29. Nxg5 {[%emt 0:00:00]} Bxg5 {[%emt 0:00:24]} 30. bxc3 {[%emt 0:00:00]} Rxf2 {[%emt 0:00:04]} 0-1

[Event "VIII Open Semana Santa-B 2024"]
[Site "San Vicente del Raspeig"]
[Date "2024.03.28"]
[Round "3.3"]
[White "Ruiz de Leon Merlo, Esther"]
[Black "Prochaieva, Tina"]
[Result "*"]
[ECO "A84"]
[WhiteElo "1873"]
[BlackElo "1792"]
[Annotator "NA RC"]
[PlyCount "30"]
[EventDate "2024.03.27"]
[EventType "swiss"]
[EventCountry "ESP"]
[SourceTitle "playchess.com"]
[Source "ChessBase"]
[SourceQuality "1"]
[TimeControl "5400+30"]

1. d4 f5 {[%emt 1:31:00]} 2. c4 e6 3. Nc3 Nf6 {[%emt 0:00:27]} 4. Bf4 c6 5. Qc2 {[%emt 1:33:00]} d5 6. Nf3 {[%emt 0:00:30]} Be7 7. e3 {[%emt 0:00:30]} Ne4 8. Bd3 {[%emt 0:00:30]} O-O 9. g4 {[%emt 0:00:30]} Na6 {[%emt 0:03:33]} 10. a3 Qa5 {[%emt 0:00:30]} 11. Ke2 {[%emt 0:01:00]} Bd7 {[%emt 0:00:00]} 12. Ne5 Be8 {[%emt 0:00:27]} 13. f3 fxg4 {[%emt 0:00:30]} 14. fxe4 Rxf4 15. exf4 {[%emt 0:02:00]} Bh5 {[%emt 0:01:00]} *

[Event "VIII Open Semana Santa-B 2024"]
[Site "San Vicente del Raspeig"]
[Date "2024.03.28"]
[Round "3.3"]
[White "Ruiz de Leon Merlo, Esther"]
[Black "Prochaieva, Tina"]
[Result "1/2-1/2"]
[ECO "B22"]
[WhiteElo "1873"]
[BlackElo "1792"]
[Annotator "NA RC"]
[PlyCount "65"]
[EventDate "2024.03.27"]
[EventType "swiss"]
[EventCountry "ESP"]
[SourceTitle "playchess.com"]
[Source "ChessBase"]
[SourceQuality "1"]
[TimeControl "5400+30"]

1. e4 c5 {[%emt 1:30:27]} 2. c3 d5 {[%emt 0:00:30]} 3. exd5 Qxd5 {[%emt 0:00:30]} 4. d4 Nf6 {[%emt 0:00:30]} 5. Nf3 e6 {[%emt 0:00:30]} 6. Na3 a6 {[%emt 0:00:30]} 7. Nc4 Nbd7 {[%emt 0:00:30]} 8. Be2 cxd4 {[%emt 0:00:30]} 9. Qxd4 Bc5 {[%emt 0:00:30]} 10. Qf4 b5 {[%emt 0:00:30]} 11. Ne3 Qd6 {[%emt 0:00:30]} 12. Qxd6 Bxd6 {[%emt 0:00:30]} 13. a4 b4 {[%emt 0:00:30]} 14. Nc4 Be7 {[%emt 0:00:30]} 15. cxb4 Bxb4+ {[%emt 0:00:30]} 16. Bd2 Bxd2+ {[%emt 0:00:30]} 17. Nfxd2 Ke7 {[%emt 0:00:30]} 18. Na5 Ne5 {[%emt 0:00:30]} 19. f4 Ng6 {[%emt 0:00:30]} 20. O-O Bd7 {[%emt 0:00:30]} 21. g3 Rab8 {[%emt 0:00:30]} 22. Rfb1 Rhc8 {[%emt 0:00:30]} 23. Bxa6 Rc2 {[%emt 0:00:30]} 24. Ndc4 Nd5 {[%emt 0:00:30]} 25. b3 Nc3 {[%emt 0:00:30]} 26. Re1 Ne2+ {[%emt 0:00:30]} 27. Kh1 Nd4 {[%emt 0:00:30]} 28. Re3 Ra8 {[%emt 0:00:30]} 29. Bb7 Ra7 {[%emt 0:00:30]} 30. Be4 Re2 {[%emt 0:00:30]} 31. Rxe2 Nxe2 {[%emt 0:00:30]} 32. Nc6+ Bxc6 {[%emt 0:00:30]} 33. Bxc6 1/2-1/2

[Event "VIII Open Semana Santa-B 2024"]
[Site "San Vicente del Raspeig"]
[Date "2024.03.28"]
[Round "3.5"]
[White "Gutierrez Lupion, Nuria"]
[Black "Herrero Ferrando, Salvador"]
[Result "1/2-1/2"]
[ECO "C55"]
[WhiteElo "1785"]
[BlackElo "1854"]
[Annotator "NA RC"]
[PlyCount "63"]
[EventDate "2024.03.27"]
[EventType "swiss"]
[EventCountry "ESP"]
[SourceTitle "playchess.com"]
[Source "ChessBase"]
[SourceQuality "1"]
[TimeControl "5400+30"]

1. e4 {[%emt 0:08:59]} e5 {[%emt 0:00:09]} 2. Nf3 {[%emt 0:00:11]} Nc6 {[%emt 0:00:17]} 3. Bc4 {[%emt 0:00:14]} Nf6 {[%emt 0:00:28]} 4. d3 {[%emt 0:00:34]} Be7 {[%emt 0:00:49]} 5. Nbd2 {[%emt 0:00:56]} d5 {[%emt 0:02:20]} 6. Bb3 {[%emt 0:05:46]} dxe4 {[%emt 0:02:02]} 7. dxe4 {[%emt 0:00:32]} O-O {[%emt 0:02:28]} 8. O-O {[%emt 0:00:36]} Bc5 {[%emt 0:02:18]} 9. c3 {[%emt 0:02:32]} Qe7 {[%emt 0:06:00]} 10. Qe2 {[%emt 0:02:27]} a6 {[%emt 0:02:24]} 11. a4 {[%emt 0:03:04]} a5 {[%emt 0:07:52]} 12. Bc2 {[%emt 0:05:38]} h6 {[%emt 0:04:41]} 13. Nc4 {[%emt 0:03:56]} Nh7 {[%emt 0:12:01]} 14. Re1 {[%emt 0:13:14]} Bg4 {[%emt 0:01:27]} 15. Ne3 {[%emt 0:02:14]} Bxe3 {[%emt 0:00:42]} 16. Qxe3 {[%emt 0:00:31]} Rad8 {[%emt 0:09:26]} 17. b3 {[%emt 0:04:23]} Rfe8 {[%emt 0:02:14]} 18. h3 {[%emt 0:03:58]} Bc8 {[%emt 0:03:43]} 19. Ba3 {[%emt 0:03:56]} Qf6 {[%emt 0:01:06]} 20. Rad1 {[%emt 0:00:08]} Ng5 {[%emt 0:05:15]} 21. Nxg5 {[%emt 0:04:32]} Qxg5 {[%emt 0:03:20]} 22. Qxg5 {[%emt 0:05:57]} hxg5 {[%emt 0:00:27]} 23. Rd3 {[%emt 0:00:54]} Rxd3 {[%emt 0:15:16]} 24. Bxd3 {[%emt 0:00:43]} Be6 {[%emt 0:01:24]} 25. b4 {[%emt 0:01:42]} Bb3 {[%emt 0:02:33]} 26. Bb5 {[%emt 0:02:33]} Ra8 {[%emt 0:03:16]} 27. bxa5 {[%emt 0:05:31]} Rxa5 {[%emt 0:02:39]} 28. Bb4 {[%emt 0:00:41]} Ra8 {[%emt 0:01:41]} 29. Bxc6 {[%emt 0:01:34]} bxc6 {[%emt 0:00:17]} 30. a5 {[%emt 0:00:07]} c5 {[%emt 0:00:51]} 31. Bxc5 {[%emt 0:00:04]} Rxa5 {[%emt 0:00:16]} 32. Bb4 {[%emt 0:01:03]} 1/2-1/2

[Event "VIII Open Semana Santa-B 2024"]
[Site "San Vicente del Raspeig"]
[Date "2024.03.28"]
[Round "3.6"]
[White "Carrillo, Jose Antonio"]
[Black "Zhuravlev, Matvey R"]
[Result "1-0"]
[ECO "E06"]
[WhiteElo "1843"]
[BlackElo "1774"]
[Annotator "NA RC"]
[PlyCount "40"]
[EventDate "2024.03.27"]
[EventType "swiss"]
[EventCountry "ESP"]
[SourceTitle "playchess.com"]
[Source "ChessBase"]
[SourceQuality "1"]
[TimeControl "5400+30"]

1. d4 d5 2. Nf3 Nf6 3. g3 e6 4. Bg2 Be7 5. O-O O-O 6. c4 c6 7. Nbd2 b6 8. Qc2 Bb7 9. Rd1 Na6 10. a3 Rc8 11. e4 c5 12. dxc5 Nxc5 13. exd5 exd5 14. b4 Ne6 15. Bb2 dxc4 16. Nxc4 Bd5 17. Ng5 Nxg5 18. Bxf6 Rxc4 19. Qxc4 Bxc4 20. Rxd8 Bxd8 1-0

[Event "VIII Open Semana Santa-B 2024"]
[Site "San Vicente del Raspeig"]
[Date "2024.03.29"]
[Round "4.1"]
[White "Amoros Moran, Jose Joaquin"]
[Black "Perea Sardon, Francisco Javier"]
[Result "1-0"]
[ECO "B12"]
[WhiteElo "1883"]
[BlackElo "1749"]
[Annotator "NA RC"]
[PlyCount "118"]
[EventDate "2024.03.27"]
[EventType "swiss"]
[EventCountry "ESP"]
[SourceTitle "playchess.com"]
[Source "ChessBase"]
[SourceQuality "1"]
[TimeControl "5400+30"]

1. e4 {[%emt 0:05:07]} c6 {[%emt 0:03:46]} 2. d4 {[%emt 0:00:30]} d5 {[%emt 0:00:30]} 3. e5 {[%emt 0:00:30]} Bf5 {[%emt 0:00:30]} 4. c4 {[%emt 0:00:30]} e6 {[%emt 0:00:30]} 5. Nc3 {[%emt 0:00:30]} Ne7 {[%emt 0:00:30]} 6. a3 {[%emt 0:00:30]} dxc4 {[%emt 0:00:30]} 7. Bxc4 {[%emt 0:00:30]} Nd7 {[%emt 0:00:30]} 8. Nge2 {[%emt 0:00:30]} Nb6 {[%emt 0:00:30]} 9. Bb3 {[%emt 0:00:30]} Qd7 {[%emt 0:00:30]} 10. O-O {[%emt 0:00:30]} O-O-O {[%emt 0:00:30]} 11. Be3 {[%emt 0:00:30]} Nbd5 {[%emt 0:00:30]} 12. Rc1 {[%emt 0:00:30]} Nxc3 {[%emt 0:00:30]} 13. Nxc3 {[%emt 0:00:30]} Nd5 {[%emt 0:00:30]} 14. Bxd5 {[%emt 0:00:30]} exd5 {[%emt 0:00:30]} 15. b4 {[%emt 0:00:30]} Kb8 {[%emt 0:00:30]} 16. Qb3 {[%emt 0:00:30]} Bd3 {[%emt 0:00:30]} 17. Rfe1 {[%emt 0:00:30]} Bc4 {[%emt 0:00:30]} 18. Qc2 {[%emt 0:00:30]} Be7 {[%emt 0:00:30]} 19. Ne4 {[%emt 0:00:30]} Qf5 {[%emt 0:00:30]} 20. Ng3 {[%emt 0:00:30]} Qxc2 {[%emt 0:00:30]} 21. Rxc2 {[%emt 0:00:30]} Kc8 {[%emt 0:00:30]} 22. f4 {[%emt 0:00:30]} h6 {[%emt 0:00:30]} 23. Rf2 {[%emt 0:00:30]} g6 {[%emt 0:00:30]} 24. f5 {[%emt 0:00:30]} g5 {[%emt 0:00:30]} 25. f6 {[%emt 0:00:30]} Bf8 {[%emt 0:00:30]} 26. Rd1 {[%emt 0:00:30]} Kd7 {[%emt 0:00:30]} 27. Nh5 {[%emt 0:00:30]} Ke6 {[%emt 0:00:30]} 28. g4 {[%emt 0:00:30]} a5 {[%emt 0:00:30]} 29. Bd2 {[%emt 0:00:30]} axb4 {[%emt 0:00:30]} 30. axb4 {[%emt 0:00:30]} Ra8 {[%emt 0:00:30]} 31. Be1 {[%emt 0:00:30]} Ra3 {[%emt 0:00:30]} 32. Rb2 {[%emt 0:00:30]} b6 {[%emt 0:00:30]} 33. Ng3 {[%emt 0:00:30]} Kd7 {[%emt 0:00:30]} 34. Rbb1 {[%emt 0:00:30]} Kc7 {[%emt 0:00:30]} 35. Ra1 {[%emt 0:00:30]} Rxa1 {[%emt 0:00:30]} 36. Rxa1 {[%emt 0:00:30]} Kb7 {[%emt 0:00:30]} 37. Rb1 {[%emt 0:00:30]} Ka6 {[%emt 0:00:30]} 38. Ra1+ {[%emt 0:00:30]} Kb7 {[%emt 0:00:30]} 39. Bc3 {[%emt 0:00:30]} Bd3 {[%emt 0:00:30]} 40. Re1 {[%emt 0:00:30]} Kc7 {[%emt 0:00:30]} 41. Nf5 {[%emt 0:00:30]} Be4 {[%emt 0:00:30]} 42. Ng3 {[%emt 0:00:30]} Bg6 {[%emt 0:00:30]} 43. Bd2 {[%emt 0:00:30]} Rh7 {[%emt 0:00:30]} 44. Kg2 {[%emt 0:00:30]} Rh8 {[%emt 0:00:30]} 45. h3 {[%emt 0:00:30]} Rh7 {[%emt 0:00:30]} 46. Nf5 {[%emt 0:00:30]} Rh8 {[%emt 0:00:30]} 47. Kg3 {[%emt 0:00:30]} Rh7 {[%emt 0:00:30]} 48. Rh1 {[%emt 0:00:30]} Rh8 {[%emt 0:00:30]} 49. Ra1 {[%emt 0:00:30]} Kb7 $16 {[%emt 0:00:30]} 50. Rh1 {[%emt 0:00:30]} Kc7 {[%emt 0:00:30]} 51. h4 {[%emt 0:00:30]} Rg8 {[%emt 0:00:30]} 52. hxg5 {[%emt 0:00:30]} hxg5 {[%emt 0:00:30]} 53. Rh2 {[%emt 0:00:30]} Kb7 {[%emt 0:00:30]} 54. Rh1 {[%emt 0:00:30]} Kc7 {[%emt 0:00:30]} 55. Rh2 {[%emt 0:00:30]} Kb7 {[%emt 0:00:30]} 56. Rf2 {[%emt 0:00:30]} Bh7 {[%emt 0:00:30]} 57. Ne7 {[%emt 0:00:30]} Bxe7 {[%emt 0:00:30]} 58. fxe7 {[%emt 0:00:30]} Bg6 {[%emt 0:00:30]} 59. e6 {[%emt 0:00:30]} Bh7 {[%emt 1:26:59]} 1-0